fUSD/lending_fUSD_20251017
["ID","MTS","AMOUNT","RATE_DAILY","PERIOD"]
[391578458,1760674232713,-189.0,0.00026,2]
[391578459,1760674232723,-502.87642689,0.0002605,2]
[391578460,1760674232733,-310.94,0.00026066,2]
[391578461,1760674232744,-5000.0,0.00026148,2]
[391578462,1760674232754,-71431.41440981,0.00026149,2]
[391578463,1760674232767,-22023.34943202,0.00026149,2]
[391578467,1760674238180,-2217.072792,0.00026149,2]
[391578470,1760674240283,-56710.94336617,0.00026149,2]
[391578471,1760674240293,-150.0,0.0002615,4]
[391578472,1760674240304,-250.0,0.00026171,7]
[391578473,1760674240315,-500.0,0.00026173,2]
[391578474,1760674240324,-150.0,0.00026201,4]
[391578475,1760674240334,-247.14389606,0.00026214,3]
[391578476,1760674240344,-1100.0,0.00026214,2]
[391578477,1760674240354,-150.0,0.00026269,4]
[391578478,1760674240363,-310.95,0.0002634,2]
[391578479,1760674240372,-3868.1448,0.00026366,2]
[391578480,1760674240382,-250.0,0.00026371,2]
[391578481,1760674240392,-158.22,0.00026395,2]
[391578482,1760674240401,-206.23,0.00026398,2]
[391578483,1760674240412,-150.0,0.00026406,4]
[391578484,1760674240421,-2800.0,0.00026488,2]
[391578485,1760674240430,-150.0,0.00026508,4]
[391578486,1760674240440,-1000.0,0.00026515,2]
[391578487,1760674240449,-3897.77,0.00026519,2]
[391578488,1760674240459,-200.0,0.00026564,2]
[391578489,1760674240469,-150.0,0.00026611,4]
[391578490,1760674240479,-396.69,0.00026676,2]
[391578491,1760674240488,-150.0,0.00026747,4]
[391578492,1760674240497,-150.0,0.00026747,4]
[391578493,1760674240508,-150.0,0.00026747,4]
[391578494,1760674240518,-150.0,0.00026747,4]
[391578495,1760674240527,-150.0,0.00026747,4]
[391578496,1760674240537,-700.0,0.00026762,2]
[391578497,1760674240546,-150.0,0.00026815,4]
[391578498,1760674240555,-150.0,0.00026866,4]
[391578499,1760674240565,-151.0,0.00026975,2]
[391578500,1760674240575,-151.0,0.00026975,2]
[391578501,1760674240584,-151.0,0.00026975,2]
[391578502,1760674240593,-151.0,0.00026975,2]
[391578503,1760674240603,-151.0,0.00026975,2]
[391578504,1760674240613,-151.0,0.00026975,2]
[391578505,1760674240623,-151.0,0.00026975,2]
[391578506,1760674240632,-214.83958116,0.00026975,2]
[391578507,1760674240641,-151.0,0.00026975,2]
[391578508,1760674240651,-200.0,0.00026975,2]
[391578509,1760674240660,-200.0,0.00026975,2]
[391578510,1760674240670,-197.25900208,0.00026975,2]
[391578511,1760674240680,-151.0,0.00026975,2]
[391578512,1760674240689,-151.0,0.00026975,2]
[391578513,1760674240699,-276.4752803,0.00026975,2]
[391578514,1760674240708,-500.0,0.00026975,2]
[391578515,1760674240718,-500.0,0.00026975,2]
[391578516,1760674240727,-500.0,0.00026975,2]
[391578517,1760674240737,-1000.0,0.00026986,7]
[391578518,1760674240746,-152.72969902,0.00026991,2]
[391578519,1760674240756,-695.39793187,0.00026991,2]
[391578520,1760674240765,-668.65185757,0.00026991,2]
[391578521,1760674240775,-9211.34798985,0.00026991,2]
[391578522,1760674240784,-322.6107,0.00026991,2]
[391578523,1760674240793,-151.0,0.00026991,2]
[391578524,1760674240802,-151.0,0.00026991,2]
[391578525,1760674240812,-151.0,0.00026991,2]
[391578526,1760674240821,-151.0,0.00026991,2]
[391578527,1760674240831,-151.0,0.00026991,2]
[391578528,1760674240840,-151.0,0.00026991,2]
[391578529,1760674240849,-151.0,0.00026991,2]
[391578530,1760674240859,-151.0,0.00026991,2]
[391578531,1760674240871,-151.0,0.00026991,2]
[391578532,1760674240880,-151.0,0.00026991,2]
[391578533,1760674240889,-152.53493316,0.00026991,2]
[391578534,1760674240899,-267.46074303,0.00026991,2]
[391578535,1760674240908,-188.0,0.00027,2]
[391578536,1760674240918,-551.83234738,0.00027003,2]
[391578537,1760674240927,-214.05554184,0.00027003,2]
[391578538,1760674240937,-500.0,0.00027003,2]
[391578539,1760674240947,-500.0,0.00027003,2]
[391578540,1760674240957,-500.0,0.00027003,2]
[391578541,1760674240966,-500.0,0.00027003,2]
[391578542,1760674240975,-500.0,0.00027003,2]
[391578543,1760674240984,-500.0,0.00027003,2]
[391578544,1760674240994,-500.0,0.00027003,2]
[391578545,1760674241003,-500.0,0.00027003,2]
[391578546,1760674241012,-500.0,0.00027003,2]
[391578547,1760674241022,-500.0,0.00027003,2]
[391578548,1760674241031,-500.0,0.00027003,2]
[391578549,1760674241042,-500.0,0.00027003,2]
[391578550,1760674241051,-500.0,0.00027003,2]
[391578551,1760674241060,-500.0,0.00027003,2]
[391578552,1760674241070,-500.0,0.00027003,2]
[391578553,1760674241079,-500.0,0.00027003,2]
[391578554,1760674241088,-500.0,0.00027003,2]
[391578555,1760674241097,-500.0,0.00027003,2]
[391578556,1760674241473,-500.0,0.00027003,2]
[391578557,1760674241484,-500.0,0.00027003,2]
[391578558,1760674241493,-500.0,0.00027003,2]
[391578559,1760674241503,-500.0,0.00027003,2]
[391578560,1760674241513,-500.0,0.00027003,2]
[391578561,1760674241522,-197.08839944,0.00027003,2]
[391578562,1760674241531,-555.017,0.00027004,90]
[391578563,1760674241540,-150.0,0.0002702,4]
[391578564,1760674241551,-9552.16786547,0.00027046,2]
[391578565,1760674241560,-9905.59807649,0.00027101,2]
[391578566,1760674241569,-198.45117234,0.00027143,2]
[391578567,1760674241579,-851.89506372,0.00027143,2]
[391578568,1760674241588,-851.89506372,0.00027155,2]
[391578569,1760674241597,-174.33,0.00027161,15]
[391578570,1760674241609,-991.871,0.00027161,15]
[391578571,1760674241622,-351.99935416,0.00027164,2]
[391578572,1760674241632,-1668.20496452,0.00027167,2]
[391578574,1760674241642,-351.99935416,0.00027168,2]
[391578575,1760674241651,-245060.10011452,0.00027173,2]
[391578576,1760674241660,-1110.77925484,0.0002718,2]
[391578577,1760674241670,-103358.85861924,0.00027193,2]
[391578650,1760674245417,-577.74251889,0.00027193,2]
[391578651,1760674245480,-910.16745981,0.00027193,2]
[391578652,1760674245491,-532.41268785,0.00027193,2]
[391578653,1760674245503,-1017.1937952,0.00027193,2]
[391578654,1760674245515,-707.91451802,0.00027193,2]
[391578655,1760674245526,-662.74702348,0.00027193,2]
[391578656,1760674245538,-314.08339956,0.00027193,2]
[391578657,1760674245550,-115250.93986271,0.00027193,2]
[391578658,1760674246284,-9024.77134683,0.00027193,2]
[391578671,1760674739384,-429.0716624,0.00013542,2]
[391578703,1760675294140,-353.65293621,0.000135,2]
[391578704,1760675296093,-143.2664803,0.000135,2]
[391578705,1760675296121,-26.39102758,0.00013542,2]
[391578734,1760675324701,-44.53731002,0.00013542,2]
[391578735,1760675324725,-280.8051821,0.00013698,2]
[391578790,1760675359882,1033.0,0.00027397,120]
[391578854,1760675431397,-1193.71497392,0.00013698,2]
[391578856,1760675431408,-250.0,0.00013837,2]
[391578858,1760675431422,-195.0,0.00013976,2]
[391578860,1760675431433,-304.33839512,0.00013976,2]
[391578861,1760675431443,-1314.59,0.00014747,2]
[391578862,1760675431453,-195.0,0.00014896,2]
[391578863,1760675431464,-300.0,0.00014896,2]
[391578864,1760675431474,-300.0,0.00014896,2]
[391578865,1760675431484,-300.0,0.00014899,2]
[391578866,1760675431495,-300.0,0.00014899,2]
[391578867,1760675431508,-78.51468385,0.00014899,2]
[391578868,1760675431562,-1121.48531615,0.00014899,2]
[391578869,1760675431588,-300.0,0.00014899,2]
[391578870,1760675431598,-615.03534028,0.000149,2]
[391578871,1760675431610,-930.50950631,0.000149,2]
[391578872,1760675431621,-351.63673559,0.000149,2]
[391578873,1760675431631,-1235.57470857,0.000149,2]
[391578874,1760675431642,-344.49825522,0.000149,2]
[391578875,1760675431652,-500.0,0.00014973,2]
[391578876,1760675431662,-500.0,0.00014973,2]
[391578877,1760675431673,-500.0,0.00014973,2]
[391578878,1760675431683,-192.08414004,0.0001499,2]
[391578879,1760675431694,-1200.0,0.00014997,2]
[391578880,1760675431704,-150.0,0.00014998,2]
[391578881,1760675431715,-369.55493606,0.00014999,2]
[391578882,1760675431724,-500.0,0.00014999,2]
[391578884,1760675431734,-500.0,0.00014999,2]
[391578886,1760675431744,-498.51410611,0.00014999,2]
[391578887,1760675431756,-502.223945,0.00014999,2]
[391578888,1760675431766,-500.0,0.00014999,2]
[391578889,1760675431776,-500.0,0.00014999,2]
[391578890,1760675431786,-588.34696652,0.00014999,2]
[391578891,1760675431796,-551.83234738,0.00014999,2]
[391578892,1760675431807,-500.0,0.00014999,2]
[391578894,1760675431818,-214.05554184,0.00014999,2]
[391578896,1760675431829,-500.0,0.00014999,2]
[391578898,1760675431839,-500.0,0.00014999,2]
[391578900,1760675431849,-500.0,0.00014999,2]
[391578902,1760675431859,-500.0,0.00014999,2]
[391578904,1760675431868,-500.0,0.00014999,2]
[391578906,1760675431878,-500.0,0.00014999,2]
[391578908,1760675431888,-500.0,0.00014999,2]
[391578910,1760675431897,-500.0,0.00014999,2]
[391578912,1760675431907,-500.0,0.00014999,2]
[391578915,1760675431917,-500.0,0.00014999,2]
[391578919,1760675431933,-500.0,0.00014999,2]
[391578923,1760675431943,-500.0,0.00014999,2]
[391578930,1760675431953,-500.0,0.00014999,2]
[391578934,1760675431963,-500.0,0.00014999,2]
[391578937,1760675431973,-500.0,0.00014999,2]
[391578940,1760675431982,-500.0,0.00014999,2]
[391578943,1760675431992,-597.08839944,0.00014999,2]
[391578946,1760675432003,-500.0,0.00014999,2]
[391578948,1760675432015,-500.0,0.00014999,2]
[391578950,1760675432025,-500.0,0.00014999,2]
[391578952,1760675432035,-500.0,0.00014999,2]
[391578953,1760675432046,-500.0,0.00014999,2]
[391578955,1760675432055,-500.0,0.00014999,2]
[391578957,1760675432065,-500.0,0.00014999,2]
[391578959,1760675432076,-500.0,0.00014999,2]
[391578961,1760675432086,-500.0,0.00014999,2]
[391578963,1760675432096,-500.0,0.00014999,2]
[391578964,1760675432106,-500.0,0.00014999,2]
[391578965,1760675432117,-500.0,0.00014999,2]
[391578967,1760675432127,-500.0,0.00014999,2]
[391578968,1760675432137,-500.0,0.00014999,2]
[391578970,1760675432147,-500.0,0.00014999,2]
[391578971,1760675432157,-500.0,0.00014999,2]
[391578972,1760675432168,-500.0,0.00014999,2]
[391578973,1760675432178,-500.0,0.00014999,2]
[391578974,1760675432187,-500.0,0.00014999,2]
[391578975,1760675432198,-500.0,0.00014999,2]
[391578976,1760675432207,-500.0,0.00014999,2]
[391578977,1760675432219,-500.0,0.00014999,2]
[391578978,1760675432229,-500.0,0.00014999,2]
[391578979,1760675432239,-500.0,0.00014999,2]
[391578980,1760675432250,-693.60268616,0.00014999,2]
[391578981,1760675432260,-113735.30402068,0.00015,2]
[391578982,1760675432287,-368173.88468645,0.00015,2]
[391578983,1760675432296,-712300.82804158,0.00015,2]
[391578988,1760675437404,-227.61481037,0.000149,2]
[391578989,1760675437417,-50.67591552,0.00015,2]
[391578990,1760675437459,-522.32199885,0.00015,2]
[391578991,1760675437475,-662.671405,0.00015,2]
[391578992,1760675437571,-3153794.62554184,0.00015,2]
[391578993,1760675437583,-1336818.96697498,0.00015,2]
[391578994,1760675437598,-2613.50859858,0.00015,2]
[391579000,1760675439677,-259.575264,0.00015,2]
[391579001,1760675439693,-2309836.1605478,0.00015,2]
[391579002,1760675439706,-150.0,0.00015039,2]
[391579003,1760675439718,-195.0,0.00015068,2]
[391579004,1760675439730,-300.0,0.00015068,2]
[391579005,1760675439743,-250.0,0.00015068,2]
[391579006,1760675439757,-250.0,0.00015068,2]
[391579007,1760675439769,-151.0,0.00015118,2]
[391579008,1760675439781,-151.0,0.00015121,2]
[391579009,1760675439793,-151.0,0.00015122,2]
[391579010,1760675439805,-151.0,0.00015125,2]
[391579011,1760675439816,-1091.0,0.00015276,2]
[391579012,1760675439828,-2210.39852061,0.00015807,2]
[391579013,1760675439840,-267.49337341,0.00016,2]
[391579014,1760675439852,-1091.0,0.00016081,2]
[391579015,1760675439864,-255.0,0.00016123,2]
[391579016,1760675439876,-500.0,0.00016173,2]
[391579017,1760675439889,-501.8511031,0.00016173,2]
[391579018,1760675439901,-500.15583796,0.00016173,2]
[391579019,1760675439912,-279.94878469,0.00016173,2]
[391579020,1760675439924,-500.76846231,0.00016173,2]
[391579021,1760675439935,-509.70729923,0.00016173,2]
[391579022,1760675439948,-501.76537609,0.00016173,2]
[391579023,1760675439959,-163.58069853,0.00016173,2]
[391579024,1760675439971,-340.26716106,0.00016173,2]
[391579025,1760675439983,-500.0,0.00016173,2]
[391579026,1760675439995,-501.42950704,0.00016173,2]
[391579027,1760675440007,-500.23921442,0.00016173,2]
[391579028,1760675440019,-249210.07845207,0.000162,5]
[391579029,1760675440031,-420.0,0.00016308,2]
[391579030,1760675440044,-420.0,0.00016308,2]
[391579031,1760675440056,-1680.0,0.00016389,2]
[391579032,1760675440068,-1680.0,0.00016413,2]
[391579033,1760675440081,-351.63673556,0.0001642,2]
[391579034,1760675440093,-501.80819126,0.00016721,2]
[391579035,1760675440105,-501.57855935,0.00016721,2]
[391579036,1760675440116,-1091.0,0.00016927,2]
[391579037,1760675440128,-207.36682235,0.00017,2]
[391579038,1760675440140,-1581.18957825,0.00017,2]
[391579039,1760675440152,-152.36762343,0.00017438,2]
[391579040,1760675440163,-1213.0,0.0001756,2]
[391579041,1760675440175,-1232.78578969,0.00017595,2]
[391579042,1760675440187,-250.0,0.00017686,2]
[391579043,1760675440199,-1091.0,0.00017818,2]
[391579044,1760675440210,-587.0,0.0001785,2]
[391579045,1760675440221,-351.63673556,0.0001794,2]
[391579046,1760675440235,-1686.0,0.00017964,2]
[391579047,1760675440247,-2351.0,0.00018028,2]
[391579048,1760675440260,-1091.0,0.00018756,2]
[391579049,1760675440272,-151.29,0.000188,2]
[391579050,1760675440284,-151.29,0.000188,2]
[391579051,1760675440295,-151.29,0.000188,2]
[391579052,1760675440307,-151.29,0.000188,2]
[391579053,1760675440318,-151.29,0.000188,2]
[391579054,1760675440331,-151.29,0.000188,2]
[391579055,1760675440342,-151.29,0.000188,2]
[391579056,1760675440354,-151.29,0.000188,2]
[391579057,1760675440365,-151.29,0.000188,2]
[391579058,1760675440377,-151.29,0.000188,2]
[391579059,1760675440388,-351.63673556,0.0001946,2]
[391579060,1760675440400,-258.0,0.00019538,2]
[391579061,1760675440412,-1164.75982019,0.000196,2]
[391579062,1760675440425,-1091.0,0.00019743,2]
[391579063,1760675440436,-1164.75982019,0.000198,2]
[391579064,1760675440448,-3292.0,0.00019831,2]
[391579065,1760675440461,-168.5,0.00019865,2]
[391579066,1760675440472,-11293.93576367,0.0001995,15]
[391579067,1760675440483,-1164.75982019,0.0002,2]
[391579068,1760675440495,-438.98106853,0.0002,5]
[391579069,1760675440510,-564.72471224,0.0002,14]
[391579070,1760675440521,-1000.0,0.0002,4]
[391579071,1760675440532,-1164.75982019,0.000202,2]
[391579072,1760675440544,-1164.75982019,0.000204,2]
[391579073,1760675440556,-500.0,0.00020411,2]
[391579074,1760675440568,-1164.75982019,0.000206,2]
[391579075,1760675440579,-1091.0,0.00020782,2]
[391579076,1760675440592,-1164.75982019,0.000208,2]
[391579077,1760675440603,-9598.32478538,0.000209,30]
[391579078,1760675440615,-351.63673556,0.0002098,2]
[391579079,1760675440627,-1164.75982019,0.00021,2]
[391579080,1760675440639,-118686.96540831,0.00021,2]
[391579081,1760675440652,-28077.85819344,0.00021,2]
[391579082,1760675440665,-1178.45682112,0.00021,2]
[391579083,1760675440677,-194.5209308,0.00021,2]
[391579084,1760675440691,-160.0,0.00021,7]
[391579085,1760675440703,-1164.75982019,0.000212,2]
[391579086,1760675440715,-1164.75982019,0.000214,2]
[391579087,1760675440727,-1129.24988174,0.000215,2]
[391579088,1760675440738,-615.03534027,0.000217,2]
[391579089,1760675440750,-4320.0,0.00021814,2]
[391579090,1760675440764,-1091.0,0.00021876,2]
[391579091,1760675440776,-1825.9,0.00021917,2]
[391579092,1760675440787,-1825.9,0.00021917,2]
[391579093,1760675440799,-1825.9,0.00021917,2]
[391579094,1760675440811,-1825.9,0.00021917,2]
[391579095,1760675440823,-1825.9,0.00021917,2]
[391579096,1760675440835,-1825.9,0.00021917,2]
[391579097,1760675440846,-1825.9,0.00021917,2]
[391579098,1760675440858,-1825.9,0.00021917,2]
[391579099,1760675440870,-1825.9,0.00021917,2]
[391579100,1760675440881,-1825.9,0.00021917,2]
[391579101,1760675440893,-1825.9,0.00021917,2]
[391579102,1760675440904,-1825.9,0.00021917,2]
[391579103,1760675440915,-1825.9,0.00021917,2]
[391579104,1760675440927,-1825.9,0.00021917,2]
[391579105,1760675440938,-1825.9,0.00021917,2]
[391579106,1760675440949,-1825.9,0.00021917,2]
[391579107,1760675440960,-1825.9,0.00021917,2]
[391579108,1760675440971,-1825.9,0.00021917,2]
[391579109,1760675440982,-4530.76129462,0.0002192,4]
[391579110,1760675440994,-6171.6714001,0.00022,4]
[391579111,1760675441005,-4530.76129462,0.00022158,4]
[391579112,1760675441016,-995.0,0.000223,2]
[391579113,1760675441027,-4530.76129462,0.00022428,4]
[391579114,1760675441038,-351.63673556,0.000225,2]
[391579115,1760675441050,-1000.0,0.000225,4]
[391579116,1760675441062,-11028.987268,0.00022659,7]
[391579117,1760675441073,-4530.76129462,0.00022698,4]
[391579118,1760675441084,-5512.0,0.000228,3]
[391579119,1760675441095,-930.50950629,0.0002291,2]
[391579120,1760675441107,-344.49825521,0.0002291,2]
[391579121,1760675441119,-4530.76129462,0.00022969,4]
[391579122,1760675441130,-1091.0,0.00022969,2]
[391579123,1760675441141,-32545.79,0.00023,7]
[391579124,1760675441152,-4530.76129462,0.00023239,4]
[391579125,1760675441163,-5512.0,0.000233,5]
[391579126,1760675441173,-4530.76129462,0.00023509,4]
[391579127,1760675441184,-4530.76129462,0.00023779,4]
[391579128,1760675441196,-351.63673556,0.0002402,2]
[391579129,1760675441208,-4530.76129462,0.0002405,4]
[391579130,1760675441219,-1091.0,0.00024118,2]
[391579131,1760675441231,-4530.76129462,0.0002432,4]
[391579132,1760675441242,-4530.76129462,0.0002459,4]
[391579133,1760675441253,-500.0,0.00024658,2]
[391579134,1760675441265,-523490.121449,0.000248,3]
[391579135,1760675441276,-151.0,0.000248,7]
[391579136,1760675441287,-151.0,0.000248,7]
[391579137,1760675441298,-151.0,0.000248,7]
[391579138,1760675441309,-151.0,0.000248,7]
[391579139,1760675441322,-151.0,0.000248,7]
[391579140,1760675441333,-151.0,0.000248,7]
[391579141,1760675441345,-151.0,0.000248,7]
[391579142,1760675441356,-775.517695,0.000248,7]
[391579143,1760675441368,-151.0,0.000248,7]
[391579144,1760675441380,-775.517695,0.000248,7]
[391579145,1760675441392,-179.000047,0.000248,7]
[391579146,1760675441403,-775.517695,0.000248,7]
[391579147,1760675441415,-151.0,0.000248,7]
[391579148,1760675441433,-151.0,0.000248,7]
[391579149,1760675441444,-152.666359,0.000248,7]
[391579150,1760675441456,-775.517695,0.000248,7]
[391579151,1760675441468,-151.0,0.000248,7]
[391579152,1760675441480,-151.0,0.000248,7]
[391579153,1760675441491,-151.0,0.000248,7]
[391579154,1760675441504,-151.0,0.000248,7]
[391579155,1760675441515,-151.0,0.000248,7]
[391579156,1760675441527,-693.233476,0.000248,7]
[391579157,1760675441538,-151.0,0.000248,7]
[391579158,1760675441550,-693.233476,0.000248,7]
[391579159,1760675441561,-151.0,0.000248,7]
[391579160,1760675441572,-693.233476,0.000248,7]
[391579161,1760675441584,-693.233476,0.000248,7]
[391579162,1760675441595,-255.007246,0.000248,7]
[391579163,1760675441606,-151.0,0.000248,7]
[391579164,1760675441618,-255.007246,0.000248,7]
[391579165,1760675441629,-151.0,0.000248,7]
[391579166,1760675441641,-151.0,0.000248,7]
[391579167,1760675441652,-151.0,0.000248,7]
[391579168,1760675441663,-151.0,0.000248,7]
[391579169,1760675441676,-255.007246,0.000248,7]
[391579170,1760675441687,-255.007246,0.000248,7]
[391579171,1760675441699,-151.0,0.000248,7]
[391579172,1760675441710,-1621.632204,0.000248,7]
[391579173,1760675441722,-151.0,0.000248,7]
[391579174,1760675441734,-1621.632204,0.000248,7]
[391579175,1760675441745,-151.0,0.000248,7]
[391579176,1760675441757,-1621.632204,0.000248,7]
[391579177,1760675441769,-1621.632204,0.000248,7]
[391579178,1760675441781,-151.0,0.000248,7]
[391579179,1760675441793,-151.0,0.000248,7]
[391579180,1760675441805,-151.0,0.000248,7]
[391579181,1760675441817,-151.0,0.000248,7]
[391579182,1760675441828,-151.0,0.000248,7]
[391579183,1760675441840,-398.781054,0.000248,7]
[391579184,1760675441852,-398.781054,0.000248,7]
[391579185,1760675441863,-398.781054,0.000248,7]
[391579186,1760675441875,-398.781054,0.000248,7]
[391579187,1760675441886,-151.0,0.000248,7]
[391579188,1760675441898,-151.0,0.000248,7]
[391579189,1760675441909,-151.0,0.000248,7]
[391579190,1760675441920,-151.0,0.000248,7]
[391579191,1760675441931,-226.980509,0.000248,7]
[391579192,1760675441943,-1787.921267,0.000248,7]
[391579193,1760675441954,-151.0,0.000248,7]
[391579194,1760675441965,-151.0,0.000248,7]
[391579195,1760675441977,-151.0,0.000248,7]
[391579196,1760675441989,-1787.921267,0.000248,7]
[391579197,1760675442002,-151.0,0.000248,7]
[391579198,1760675442015,-151.0,0.000248,7]
[391579199,1760675442027,-1787.921267,0.000248,7]
[391579200,1760675442039,-216.299455,0.000248,7]
[391579201,1760675442051,-151.0,0.000248,7]
[391579202,1760675442062,-1787.921267,0.000248,7]
[391579203,1760675442074,-216.299455,0.000248,7]
[391579204,1760675442086,-151.0,0.000248,7]
[391579205,1760675442097,-216.299455,0.000248,7]
[391579206,1760675442109,-216.299455,0.000248,7]
[391579207,1760675442120,-4530.76129462,0.0002486,4]
[391579208,1760675442131,-200.0,0.00024874,2]
[391579209,1760675442144,-151.0,0.00024874,2]
[391579210,1760675442156,-151.0,0.00024874,2]
[391579212,1760675443023,-151.0,0.00024874,2]
[391579213,1760675443077,-611.4762398,0.00024874,2]
[391579214,1760675443114,-215.12912554,0.00024874,2]
[391579215,1760675443124,-333.64663694,0.00024874,2]
[391579216,1760675443135,-151.0,0.00024874,2]
[391579217,1760675443145,-151.0,0.00024874,2]
[391579218,1760675443155,-151.0,0.00024874,2]
[391579219,1760675443164,-151.0,0.00024874,2]
[391579220,1760675443174,-151.0,0.00024874,2]
[391579221,1760675443184,-151.0,0.00024874,2]
[391579222,1760675443194,-151.0,0.00024874,2]
[391579223,1760675443204,-151.0,0.00024874,2]
[391579224,1760675443214,-151.0,0.00024874,2]
[391579225,1760675443226,-151.0,0.00024874,2]
[391579226,1760675443236,-151.0,0.00024874,2]
[391579227,1760675443246,-276.4752803,0.00024874,2]
[391579228,1760675443255,-151.0,0.00024874,2]
[391579229,1760675443265,-151.0,0.00024874,2]
[391579230,1760675443276,-151.0,0.00024874,2]
[391579231,1760675443285,-500.0,0.00024874,2]
[391579232,1760675443295,-151.0,0.00024874,2]
[391579233,1760675443305,-500.0,0.00024874,2]
[391579234,1760675443315,-151.0,0.00024874,2]
[391579235,1760675443324,-500.0,0.00024874,2]
[391579236,1760675443335,-151.0,0.00024874,2]
[391579237,1760675443345,-500.0,0.00024874,2]
[391579238,1760675443355,-151.0,0.00024874,2]
[391579239,1760675443366,-500.0,0.00024874,2]
[391579240,1760675443376,-151.0,0.00024874,2]
[391579241,1760675443386,-200.0,0.00024874,2]
[391579242,1760675443396,-500.0,0.00024874,2]
[391579243,1760675443406,-151.0,0.00024874,2]
[391579244,1760675443416,-500.0,0.00024874,2]
[391579245,1760675443430,-151.0,0.00024874,2]
[391579246,1760675443440,-197.25900208,0.00024874,2]
[391579247,1760675443451,-500.0,0.00024874,2]
[391579248,1760675443461,-151.0,0.00024874,2]
[391579249,1760675443471,-500.0,0.00024874,2]
[391579250,1760675443482,-214.83958116,0.00024874,2]
[391579251,1760675443492,-567.99451821,0.00024874,2]
[391579252,1760675443504,-4251.98,0.00024888,2]
[391579253,1760675443514,-5005.09,0.00024889,2]
[391579254,1760675443524,-6969.09825647,0.000249,3]
[391579255,1760675444052,-740.42271886,0.000249,3]
[391579256,1760675444069,-152.87487,0.000248,7]
[391579257,1760675444079,-57605.51700609,0.000249,3]
[391579258,1760675444092,-1916.09302626,0.000249,3]
[391579259,1760675444217,-227.61481034,0.00014904,2]
[391579260,1760675444227,-414.75235966,0.000249,3]
[391579261,1760675444240,-6615.10245178,0.000249,3]
[391579262,1760675445704,-352.17713,0.000249,3]
[391579263,1760675445762,-5466.87,0.000249,3]
[391579268,1760675471398,627.628,0.00027193,120]
[391579269,1760675490280,-300.0,0.00013442,2]
[391579270,1760675568097,-200.0,0.00013442,2]
[391579271,1760675568122,-300.0,0.00014786,2]
[391579272,1760675568148,-227.61481034,0.00014909,2]
[391579273,1760675568172,-2500.0,0.0001491,2]
[391579274,1760675568197,-300.0,0.00014911,2]
[391579275,1760675568222,-250.0,0.00014911,2]
[391579276,1760675568246,-300.0,0.00014911,2]
[391579277,1760675568270,-227.61481034,0.00014913,2]
[391579278,1760675568292,-1200.0,0.00014913,2]
[391579279,1760675568314,-2500.0,0.00014914,2]
[391579280,1760675568338,-2500.0,0.00014914,2]
[391579281,1760675568360,-2563.51508623,0.00014914,2]
[391579282,1760675568383,-227.61481034,0.00014917,2]
[391579283,1760675568405,-227.61481034,0.00014922,2]
[391579284,1760675568428,-227.61481034,0.00014926,2]
[391579285,1760675568451,-227.61481034,0.0001493,2]
[391579286,1760675568473,-227.61481034,0.00014935,2]
[391579287,1760675568499,-227.61481034,0.00014939,2]